bitfinex/quotes_SOLUSD_20220218
["timestamp","ask_amount","ask_price","bid_price","bid_amount"]
[1645193996212,106.2,93.847,93.822,0.1605496]
[1645193997834,1.53251001,93.838,93.822,0.1605496]
[1645194003040,107.73340625,93.868,93.822,0.1605496]
[1645194006144,1.53340625,93.868,93.822,0.1605496]
[1645194006345,1.53340625,93.868,93.823,5.327]
[1645194007543,1.53340625,93.868,93.823,5.4875496]
[1645194007743,1.53340625,93.868,93.823,0.1605496]
[1645194007943,106.2,93.877,93.823,0.1605496]
[1645194008142,106.2,93.875,93.823,0.1605496]
[1645194008345,23.4319,93.878,93.823,0.1605496]
[1645194008346,24.93306464,93.878,93.823,0.1605496]
[1645194008543,23.4319,93.878,93.824,5.327]
[1645194008942,129.6319,93.878,93.824,5.327]
[1645194009543,129.6319,93.878,93.824,5.4875496]
[1645194010372,106.2,93.869,93.824,5.4875496]
[1645194010575,106.2,93.867,93.824,5.4875496]
[1645194011174,19.40373092,93.868,93.824,5.4875496]
[1645194012178,15.9947,93.87,93.824,5.4875496]
[1645194013978,106.2,93.869,93.824,0.1605496]
[1645194014478,15.9947,93.87,93.824,0.1605496]
[1645194014679,23.4319,93.878,93.824,0.1605496]
[1645194015485,23.4319,93.878,93.825,5.327]
[1645194016580,23.4319,93.878,93.825,5.4875496]
[1645194017183,1.50116464,93.891,93.83,15.9894]
[1645194017382,1.50116464,93.895,93.831,5.327]
[1645194017682,1.50116464,93.899,93.831,5.4875496]
[1645194017881,1.50116464,93.898,93.831,5.4875496]
[1645194018082,1.50116464,93.898,93.832,43.65963194]
[1645194018283,148.10922098,93.899,93.833,5.325]
[1645194018482,148.10922098,93.899,93.833,5.4855496]
[1645194018785,106.2,93.899,93.833,5.4855496]
[1645194018982,107.70116464,93.899,93.833,5.4855496]
[1645194019183,106.2,93.899,93.833,5.4855496]
[1645194020191,106.2,93.889,93.833,5.4855496]
[1645194020387,130.3078,93.888,93.833,5.4855496]
[1645194020787,24.1078,93.888,93.833,5.4855496]
[1645194021590,1.50116464,93.898,93.833,5.4855496]
[1645194022589,107.70116464,93.899,93.833,5.4855496]
[1645194022990,132.17416464,93.899,93.833,5.4855496]
[1645194023192,1.50116464,93.898,93.833,5.4855496]
[1645194023392,17.49066464,93.9,93.833,69.1355496]
[1645194023594,1.50116464,93.904,93.84,15.988]
[1645194023793,1.50116464,93.909,93.84,15.988]
[1645194024190,15.988,93.91,93.841,63.65]
[1645194024391,1.50116464,93.911,93.843,63.65]
[1645194024594,1.50116464,93.912,93.843,63.65]
[1645194024794,1.50116464,93.914,93.851,63.65]
[1645194024994,1.50116464,93.927,93.851,63.65]
[1645194025192,1.50116464,93.931,93.853,63.65]
[1645194025392,1.50116464,93.934,93.853,63.65]
[1645194025593,1.50116464,93.931,93.842,22.8705]
[1645194025794,1.50116464,93.919,93.854,40.14913705]
[1645194025991,39.3386831,93.93,93.854,40.14913705]
[1645194025992,106.2,93.917,93.854,40.14913705]
[1645194026392,106.2,93.915,93.854,40.14913705]
[1645194026596,106.2,93.913,93.854,40.14913705]
[1645194026995,106.2,93.911,93.854,40.14913705]
[1645194027193,106.2,93.909,93.842,22.8705]
[1645194027394,1.50116464,93.907,93.842,22.8705]
[1645194027593,107.70116464,93.909,93.842,22.8705]
[1645194027793,4.13054774,93.908,93.842,22.8705]
[1645194027992,1.50116464,93.902,93.842,22.8705]
[1645194028193,40.67277582,93.901,93.842,64.14501632]
[1645194028594,24.5449,93.9,93.842,64.14501632]
[1645194028804,106.2,93.899,93.842,22.8705]
[1645194029198,1.50116464,93.898,93.842,22.8705]
[1645194029397,4.13054774,93.898,93.842,22.8705]
[1645194029696,2.6293831,93.897,93.839,0.1605496]
[1645194030097,40.5335,93.9,93.839,0.1605496]
[1645194030497,1.50116464,93.899,93.839,0.1605496]
[1645194030695,42.03466464,93.9,93.839,0.1605496]
[1645194031096,50.9974071,93.899,93.839,0.1605496]
[1645194031297,15.9904,93.89,93.839,0.1605496]
[1645194031698,111.525,93.889,93.839,0.1605496]
[1645194031899,106.2,93.879,93.839,0.1605496]
[1645194032102,130.266,93.878,93.839,0.1605496]
[1645194032299,106.2,93.876,93.839,0.1605496]
[1645194032497,106.2,93.874,93.839,0.1605496]
[1645194032899,106.2,93.872,93.839,0.1605496]
[1645194033097,5.327,93.877,93.839,0.1605496]
[1645194033299,1.50116464,93.883,93.839,0.1605496]
[1645194033498,1.50116464,93.887,93.839,0.1605496]
[1645194034196,107.70116464,93.885,93.839,0.1605496]
[1645194034598,15.9921,93.88,93.839,0.1605496]
[1645194035699,106.2,93.879,93.839,0.1605496]
[1645194035897,15.9937,93.87,93.839,0.1605496]
[1645194036097,17.89240123,93.869,93.839,0.1605496]
[1645194036297,15.9937,93.87,93.839,0.1605496]
[1645194037506,15.9953,93.86,93.839,0.1605496]
[1645194037699,106.2,93.859,93.839,0.1605496]
[1645194037898,15.9953,93.86,93.839,0.1605496]
[1645194041402,15.9936,93.87,93.839,0.1605496]
[1645194045428,24.2321,93.872,93.839,0.1605496]
[1645194046429,15.9919,93.88,93.839,0.1605496]
[1645194046731,1.50116464,93.886,93.839,0.1605496]
[1645194047733,42.11454884,93.885,93.839,0.1605496]
[1645194047936,15.9918,93.88,93.839,0.1605496]
[1645194049334,24.7603,93.883,93.839,0.1605496]
[1645194055140,15.9918,93.88,93.839,0.1605496]
[1645194055341,9.40193857,93.879,93.839,0.1605496]
[1645194055543,115.60193857,93.879,93.839,0.1605496]
[1645194055742,1.50116464,93.877,93.839,0.1605496]
[1645194055943,1.50116464,93.875,93.839,0.1605496]
[1645194056344,115.60193857,93.879,93.839,0.1605496]
[1645194056345,15.9938,93.87,93.839,0.1605496]
[1645194056544,1.50116464,93.865,93.839,0.1605496]
[1645194056944,1.50116464,93.864,93.839,0.1605496]
[1645194057151,1.50116464,93.863,93.839,0.1605496]
[1645194057547,1.50116464,93.862,93.839,0.1605496]
[1645194058246,1.50116464,93.864,93.839,0.1605496]
[1645194058447,106.2,93.859,93.839,0.1605496]
[1645194058647,1.50116464,93.862,93.839,0.1605496]
[1645194059248,1.50116464,93.861,93.839,0.1605496]
[1645194059849,1.50116464,93.862,93.839,0.1605496]
[1645194060549,17.49636464,93.86,93.839,0.1605496]
[1645194061751,15.9952,93.86,93.839,0.1605496]
[1645194064254,106.2,93.859,93.839,0.1605496]
[1645194064652,15.9952,93.86,93.839,0.1605496]
[1645194065453,106.2,93.859,93.839,0.1605496]
[1645194065653,15.9952,93.86,93.839,0.1605496]
[1645194066454,106.2,93.859,93.839,0.1605496]
[1645194066653,15.9952,93.86,93.839,0.1605496]
[1645194067756,106.2,93.859,93.839,0.1605496]
[1645194068856,15.9952,93.86,93.839,0.1605496]
[1645194070862,1.53254484,93.861,93.839,0.1605496]
[1645194072258,1.50116464,93.875,93.839,0.1605496]
[1645194072663,1.50116464,93.876,93.839,0.1605496]
[1645194073261,11.11167858,93.875,93.839,0.1605496]
[1645194073462,1.50116464,93.876,93.839,0.1605496]
[1645194075063,6.44036953,93.875,93.839,0.1605496]
[1645194075366,1.50116464,93.875,93.839,0.1605496]
[1645194075964,1.50116464,93.873,93.839,0.1605496]
[1645194076765,1.50116464,93.87,93.839,0.1605496]
[1645194076967,1.50116464,93.869,93.839,0.1605496]
[1645194077165,18.32430223,93.868,93.839,0.1605496]
[1645194077365,19.82546687,93.868,93.839,0.1605496]
[1645194077589,1.50116464,93.865,93.839,0.1605496]
[1645194077789,1.50116464,93.864,93.839,0.1605496]
[1645194078489,15.9953,93.86,93.839,0.1605496]
[1645194079490,122.1953,93.86,93.839,0.1605496]
[1645194080497,55.08314278,93.862,93.839,0.1605496]
[1645194080498,106.2,93.849,93.839,0.1605496]
[1645194080891,0.55109692,93.848,93.839,0.1605496]
[1645194084394,2.05226156,93.848,93.839,0.1605496]
[1645194084794,0.55109692,93.848,93.839,0.1605496]
[1645194084993,1.50116464,93.847,93.839,0.1605496]
[1645194085494,1.50116464,93.846,93.839,0.1605496]
[1645194085895,1.50116464,93.847,93.839,0.1605496]
[1645194086494,0.55109692,93.848,93.839,0.1605496]
[1645194088097,1.50116464,93.846,93.839,0.1605496]
[1645194088301,107.70116464,93.846,93.839,0.1605496]
[1645194088499,1.50116464,93.841,93.839,0.1605496]
[1645194088903,1.50116464,93.842,93.839,0.1605496]
[1645194089298,1.50116464,93.843,93.839,0.1605496]
[1645194089597,1.50116464,93.842,93.839,0.1605496]
[1645194089797,1.50116464,93.841,93.839,0.1605496]
[1645194089998,1.50116464,93.843,93.839,0.1605496]
[1645194090702,1.50116464,93.844,93.839,0.1605496]
[1645194091000,1.50116464,93.843,93.839,0.1605496]
[1645194091199,1.50116464,93.844,93.839,0.1605496]
[1645194091799,2.6293831,93.843,93.839,0.1605496]
[1645194092200,1.50116464,93.844,93.839,0.1605496]
[1645194092599,2.6293831,93.843,93.839,0.1605496]
[1645194092798,1.50116464,93.844,93.839,0.1605496]
[1645194093202,1.52998488,93.841,93.839,0.1605496]
[1645194094002,4.15936798,93.841,93.839,0.1605496]
[1645194094203,1.50116464,93.84,93.839,0.1605496]
[1645194096309,3.03114952,93.841,93.839,0.1605496]
[1645194098208,1.50116464,93.842,93.839,0.1605496]
[1645194099808,2.6293831,93.841,93.839,0.1605496]
[1645194100210,1.50116464,93.842,93.839,0.1605496]
[1645194102514,1.50116464,93.842,93.787,39.88833643]
[1645194102515,131.2,93.839,93.787,0.4548221]
[1645194102813,106.2,93.827,93.766,5.329]
[1645194103013,15.4,93.83,93.719,0.4458482]
[1645194103014,1.50116464,93.808,93.739,5.33]
[1645194103213,106.2,93.799,93.719,0.4458482]
[1645194103414,207.96,93.8,93.719,0.4458482]
[1645194103415,106.2,93.787,93.719,0.4458482]
[1645194103614,106.2,93.779,93.719,0.4458482]
[1645194103917,106.2,93.769,93.732,6e-07]
[1645194104115,106.2,93.759,93.732,6e-07]
[1645194104313,106.2,93.749,93.732,6e-07]
[1645194104514,106.2,93.739,93.732,6e-07]
[1645194106114,0.55109692,93.738,93.732,6e-07]
[1645194107417,15.4,93.74,93.733,2.48110304]
[1645194107615,16.0215,93.75,93.734,51.40192091]
[1645194109017,15.4,93.76,93.734,51.40192091]
[1645194109221,15.4,93.78,93.734,51.40192091]
[1645194109418,15.4,93.78,93.735,5.332]
[1645194109617,68.7683,93.8,93.735,5.332]
[1645194110017,53.994795,93.798,93.735,5.332]
[1645194110218,16.0083,93.79,93.734,51.40192091]
[1645194110420,106.2,93.789,93.734,51.40192091]
[1645194111845,106.2,93.789,93.735,5.332]
[1645194112941,106.2,93.789,93.734,51.40192091]
[1645194114144,54.39495923,93.788,93.735,5.332]
[1645194114546,15.4,93.79,93.735,5.332]
[1645194116248,15.4,93.79,93.734,51.40192091]
[1645194116648,31.4099,93.79,93.734,51.40192091]
[1645194116851,106.6,93.788,93.734,51.40192091]
[1645194117049,106.6,93.786,93.734,51.40192091]
[1645194117550,5.332,93.787,93.734,51.40192091]
[1645194117749,1.52319572,93.788,93.735,5.332]
[1645194120155,1.52319572,93.788,93.734,51.40192091]
[1645194120359,51.45100505,93.787,93.734,51.40192091]
[1645194120958,109.2293831,93.786,93.734,51.40192091]
[1645194121156,106.6,93.784,93.734,51.40192091]
[1645194121356,106.6,93.782,93.734,51.40192091]
[1645194122356,16.011,93.78,93.734,51.40192091]
[1645194122757,106.6,93.779,93.734,51.40192091]
[1645194123158,106.6,93.777,93.734,51.40192091]
[1645194123358,106.6,93.775,93.734,51.40192091]
[1645194123761,106.6,93.773,93.734,51.40192091]
[1645194124760,5.333,93.779,93.734,51.40192091]
[1645194125162,106.6,93.778,93.734,51.40192091]
[1645194125361,106.6,93.776,93.734,51.40192091]
[1645194125561,106.6,93.774,93.734,51.40192091]
[1645194127064,5.333,93.779,93.734,51.40192091]
[1645194127462,16.011,93.78,93.734,51.40192091]
[1645194128368,106.6,93.779,93.734,51.40192091]
[1645194128566,106.6,93.777,93.734,51.40192091]
[1645194128766,106.6,93.769,93.719,0.4458482]
[1645194129995,106.6,93.759,93.719,0.4458482]
[1645194131267,106.6,93.757,93.719,0.4458482]
[1645194131467,16.0159,93.75,93.719,0.4458482]
[1645194131867,15.4,93.76,93.719,0.4458482]
[1645194132072,5.333,93.767,93.719,0.4458482]
[1645194132270,50.0,93.77,93.72,5.333]
[1645194132869,50.0,93.77,93.721,52.03184553]
[1645194133170,50.0,93.77,93.722,5.333]
[1645194134271,50.0,93.77,93.73,16.0067]
[1645194134469,50.0,93.77,93.731,5.333]
[1645194135270,49.5,93.77,93.731,5.333]
[1645194135474,49.5,93.77,93.74,16.0048]
[1645194135671,49.5,93.77,93.742,45.26289151]
[1645194135872,0.0001,93.77,93.743,68.982]
[1645194136274,0.0001,93.77,93.744,106.6]
[1645194136473,0.0001,93.77,93.745,5.332]
[1645194136673,0.0001,93.77,93.744,5.332]
[1645194136876,0.0001,93.77,93.745,106.6]
[1645194137175,0.0001,93.77,93.746,111.932]
[1645194137381,0.0001,93.77,93.75,16.0029]
[1645194137603,0.0001,93.77,93.751,5.332]
[1645194137801,0.0001,93.77,93.746,106.6]
[1645194137802,0.0001,93.77,93.748,170.25]
[1645194138002,0.0001,93.77,93.751,2.6293831]
[1645194138203,0.0001,93.77,93.753,63.65]
[1645194138403,0.0001,93.77,93.754,5.332]
[1645194139306,0.0001,93.77,93.761,106.6]
[1645194139504,0.0001,93.77,93.763,170.25]
[1645194139710,0.0001,93.77,93.762,7.81310304]
[1645194139711,0.0001,93.77,93.765,170.25]
[1645194140006,0.0001,93.77,93.764,52.9153]
[1645194140007,0.0001,93.77,93.767,170.25]
[1645194140304,0.0001,93.77,93.769,63.65]
[1645194140505,0.0001,93.77,93.769,68.982]
[1645194144307,0.0001,93.77,93.769,63.65]
[1645194144509,0.0001,93.77,93.765,5.332]
[1645194144810,0.0001,93.77,93.764,47.5833]
[1645194145009,0.0001,93.77,93.768,63.65]
[1645194145208,0.0001,93.77,93.769,175.582]
[1645194145412,0.0001,93.77,93.769,178.2113831]
[1645194146211,0.0001,93.77,93.769,5.332]
[1645194146412,0.0001,93.77,93.765,5.332]
[1645194148416,0.0001,93.77,93.764,47.5833]
[1645194152516,1.52076,93.769,93.762,2.48110304]
[1645194152720,0.55109692,93.768,93.731,29.9163]
[1645194152921,0.55109692,93.768,93.731,24.5843]
[1645194153118,0.55109692,93.768,93.723,5.333]
[1645194153517,0.55109692,93.768,93.724,40.23642553]
[1645194153718,0.55109692,93.768,93.73,16.0065]
[1645194155321,0.55109692,93.768,93.731,5.333]
[1645194159123,0.55109692,93.768,93.74,16.0049]
[1645194159326,0.55109692,93.768,93.741,68.983]
[1645194159526,1.52076,93.769,93.745,170.25]
[1645194159828,1.52076,93.769,93.746,5.332]
[1645194160227,1.52076,93.769,93.747,48.01332573]
[1645194160429,1.52076,93.769,93.75,16.0003]
[1645194160625,1.52076,93.769,93.751,5.332]
[1645194161027,1.52076,93.769,93.752,2.6293831]
[1645194161227,1.52076,93.769,93.753,5.332]
[1645194162227,1.52076,93.769,93.75,16.0003]
[1645194162228,0.0001,93.77,93.75,16.0003]
[1645194162730,0.0001,93.77,93.76,16.0014]
[1645194163030,0.0001,93.77,93.761,2.48110304]
[1645194165634,0.0001,93.77,93.761,66.13110304]
[1645194165932,0.0001,93.77,93.763,63.65]
[1645194166131,0.0001,93.77,93.764,5.332]
[1645194166631,0.0001,93.77,93.765,2.6293831]
[1645194166831,0.0001,93.77,93.766,28.5431]
[1645194167831,0.0001,93.77,93.767,66.2793831]
[1645194168030,0.0001,93.77,93.768,5.332]
[1645194171359,0.0001,93.77,93.761,2.48110304]
[1645194171960,0.55109692,93.769,93.732,48.85816849]
[1645194172361,0.0001,93.77,93.732,48.85816849]
[1645194172763,0.0001,93.77,93.733,2.6293831]
[1645194173163,0.0001,93.77,93.731,23.5157]
[1645194173368,0.0001,93.77,93.74,16.0038]
[1645194175269,0.0001,93.77,93.75,16.0013]
[1645194175671,0.0001,93.77,93.751,5.332]
[1645194175873,0.0001,93.77,93.743,5.332]
[1645194177473,0.0001,93.77,93.76,16.0013]
[1645194177671,0.0001,93.77,93.761,7.81310304]
[1645194179673,0.0001,93.77,93.761,7.31310304]
[1645194180275,0.0001,93.77,93.761,2.48110304]
[1645194180876,0.0001,93.77,93.762,5.332]
[1645194182475,1.52076,93.769,93.762,5.332]
[1645194182675,1.52076,93.769,93.763,53.25888583]
[1645194182875,1.52076,93.769,93.764,5.332]
[1645194184275,0.0001,93.77,93.764,5.332]
[1645194184476,0.0001,93.77,93.765,2.6293831]
[1645194185078,0.0001,93.77,93.764,5.332]
[1645194185579,0.0001,93.77,93.764,21.0618]
[1645194186079,0.0001,93.77,93.764,5.332]
[1645194187783,1.52063178,93.768,93.764,5.332]
[1645194187981,1.52063178,93.768,93.765,51.20542751]
[1645194188381,1e-08,93.768,93.765,51.20542751]
[1645194188584,1e-08,93.768,93.764,5.332]
[1645194189382,1e-08,93.768,93.762,5.332]
[1645194189583,1e-08,93.768,93.761,2.48110304]
[1645194190003,0.55109692,93.767,93.75,16.003]
[1645194190189,1e-08,93.768,93.76,2.48110304]
[1645194192588,0.0001,93.77,93.766,0.82204641]
[1645194193186,0.55109692,93.769,93.766,0.82204641]
[1645194194393,0.0001,93.77,93.766,0.82204641]
[1645194197602,0.0001,93.77,93.741,5.332]
[1645194200294,0.0001,93.77,93.75,16.0033]
[1645194200494,0.0001,93.77,93.751,5.332]
[1645194207706,1.14058603,93.769,93.751,5.332]
[1645194207907,1.14058603,93.769,93.752,50.50370721]
[1645194210611,1.14058603,93.769,93.751,5.332]
[1645194211011,1.14058603,93.769,93.729,24.3024]
[1645194211612,1.14058603,93.769,93.73,43.45592416]
[1645194212415,1.14058603,93.769,93.73,59.46262416]
[1645194214434,1.14058603,93.769,93.731,5.333]
[1645194220441,1.14058603,93.769,93.73,59.46262416]
[1645194220841,1.14058603,93.769,93.73,43.45592416]
[1645194221040,1.14058603,93.769,93.72,16.0082]
[1645194221941,1.14058603,93.769,93.721,48.53992789]
[1645194222143,1.14058603,93.769,93.721,47.53992789]
[1645194222341,0.0001,93.77,93.721,47.53992789]
[1645194222543,0.0001,93.77,93.733,0.82697032]
[1645194227649,0.0001,93.77,93.721,48.3665997]
[1645194228649,0.0001,93.77,93.721,0.82667181]
[1645194229450,0.0001,93.77,93.722,5.333]
[1645194229651,0.0001,93.77,93.723,53.30787667]
[1645194229849,0.0001,93.77,93.724,5.333]
[1645194233554,0.0001,93.77,93.73,16.0068]
[1645194233752,0.0001,93.77,93.731,5.333]
[1645194235557,0.0001,93.77,93.73,16.0068]
[1645194237356,0.0001,93.77,93.723,40.21250643]
[1645194237555,1.14058603,93.769,93.723,39.38404333]
[1645194238785,107.74058603,93.769,93.723,39.38404333]
[1645194239060,1.50116464,93.766,93.723,39.38404333]
[1645194239860,1.14058603,93.769,93.723,39.38404333]
[1645194240863,1.50116464,93.768,93.723,39.38404333]
[1645194241063,1.14058603,93.769,93.723,39.38404333]
[1645194241264,0.14058603,93.769,93.723,39.38404333]
[1645194242762,1.14148359,93.769,93.723,39.38404333]
[1645194244667,1.14148359,93.769,93.724,5.333]
[1645194248070,0.0001,93.77,93.725,0.95316452]
[1645194248274,0.0001,93.77,93.73,16.0066]
[1645194248471,0.0001,93.77,93.731,29.2923]
[1645194248671,0.0001,93.77,93.731,23.9593]
[1645194248871,0.0001,93.77,93.732,5.333]
[1645194249472,0.0001,93.77,93.74,16.0037]
[1645194249673,0.0001,93.77,93.741,5.333]
[1645194250072,0.0001,93.77,93.74,16.0037]
[1645194250674,0.0001,93.77,93.741,5.333]
[1645194250875,0.0001,93.77,93.732,5.333]
[1645194251074,0.0001,93.77,93.733,24.2158]
[1645194251274,0.0001,93.77,93.734,5.333]
[1645194252276,0.0001,93.77,93.725,0.95316452]
[1645194252478,0.0001,93.77,93.734,0.95182106]
[1645194252879,1.50126464,93.77,93.735,41.3431461]
[1645194255383,0.0001,93.77,93.735,41.3431461]
[1645194255989,0.0001,93.77,93.735,41.6637375]
[1645194256285,106.6,93.769,93.735,0.3205914]
[1645194256484,108.10116464,93.769,93.735,0.3205914]
[1645194256685,106.6,93.769,93.735,0.3205914]
[1645194257086,0.0001,93.77,93.735,0.3205914]
[1645194257685,0.0001,93.77,93.737,0.9513733]
[1645194258985,0.0001,93.77,93.737,1.2719647]
[1645194262314,0.0001,93.77,93.739,0.95107481]
[1645194263017,0.0001,93.77,93.739,1.27166621]
[1645194267723,0.0001,93.77,93.741,0.95077633]
[1645194268123,0.0001,93.77,93.741,1.27136773]
[1645194270026,0.0001,93.77,93.75,16.0033]
[1645194271127,0.0001,93.77,93.751,25.3266831]
[1645194271328,0.0001,93.77,93.76,16.0002]
[1645194271728,0.0001,93.77,93.761,2.48110304]
[1645194271927,0.0001,93.77,93.762,24.0056]
[1645194272229,0.0001,93.77,93.762,24.1293046]
[1645194272827,1.01558603,93.769,93.762,24.1293046]
[1645194273428,1.01558603,93.769,93.763,41.57345752]
[1645194273629,0.51558603,93.769,93.763,41.57345752]
[1645194274032,0.51558603,93.769,93.763,41.69716212]
[1645194274730,0.51558603,93.769,93.764,5.332]
[1645194275330,0.51558603,93.769,93.764,5.4557046]
[1645194275930,0.51558603,93.769,93.764,0.1237046]
[1645194277632,0.0001,93.77,93.764,0.1237046]
[1645194277832,0.95295781,93.768,93.765,5.332]
[1645194278033,0.0001,93.77,93.765,5.332]
[1645194278234,0.0001,93.77,93.765,5.4557046]
[1645194279035,0.0001,93.77,93.765,0.1237046]
[1645194282437,0.0001,93.77,93.767,1.00939732]
[1645194283140,0.0001,93.77,93.767,1.13310192]
[1645194287562,0.0001,93.77,93.769,1.192667]
[1645194288264,1.50116464,93.828,93.78,15.9973]
[1645194288465,1.50116464,93.831,93.78,15.9973]
[1645194288664,1.50116464,93.831,93.781,43.00224016]
[1645194289563,1.50116464,93.832,93.781,43.00224016]
[1645194289763,1.50116464,93.832,93.782,5.33]
[1645194290664,1.50116464,93.833,93.782,5.33]
[1645194292271,1.50116464,93.833,93.79,15.9965]
[1645194292471,1.50116464,93.833,93.791,5.329]
[1645194292670,1.50116464,93.834,93.791,5.329]
[1645194293369,1.50116464,93.832,93.791,5.329]
[1645194293970,1.50116464,93.833,93.791,5.329]
[1645194294170,1.50116464,93.827,93.783,1.19057925]
[1645194294374,1.50116464,93.822,93.783,1.19057925]
[1645194294571,1.50116464,93.823,93.783,6.52057925]
[1645194294770,1.50116464,93.826,93.783,6.52057925]
[1645194294971,1.50116464,93.83,93.783,6.52057925]
[1645194295173,1.50116464,93.831,93.783,6.52057925]
[1645194295371,1.50116464,93.829,93.783,6.52057925]
[1645194295571,1.50116464,93.827,93.783,6.52057925]
[1645194295772,1.50116464,93.826,93.783,6.52057925]
[1645194296374,1.50116464,93.827,93.783,6.52057925]
[1645194296576,23.5574,93.845,93.784,24.266]
[1645194296577,1.50116464,93.824,93.784,24.266]
[1645194297574,1.50116464,93.82,93.784,24.266]
[1645194298376,1.50116464,93.821,93.784,24.3897046]
[1645194298677,1.50116464,93.824,93.784,24.3897046]
[1645194299279,1.50116464,93.823,93.784,24.3897046]
[1645194300183,1.50116464,93.83,93.784,24.3897046]
[1645194300386,0.77746254,93.831,93.784,24.3897046]
[1645194300586,1.50116464,93.837,93.787,170.25]
[1645194300781,1.50116464,93.854,93.787,170.25]
[1645194300984,1.50116464,93.861,93.788,2.6293831]
[1645194301183,1.50116464,93.87,93.791,170.25]
[1645194301383,1.50116464,93.867,93.791,170.3737046]
[1645194301588,1.50116464,93.867,93.792,2.6293831]
[1645194301786,1.50116464,93.866,93.792,2.6293831]
[1645194302185,1.50116464,93.865,93.811,170.25]
[1645194302384,15.4,93.91,93.82,170.25]
[1645194302583,2.97986611,93.912,93.82,185.65]
[1645194302786,2.97986611,93.923,93.821,2.6293831]
[1645194302987,2.97986611,93.925,93.823,170.25]
[1645194303288,2.97986611,93.938,93.825,170.25]
[1645194303485,112.64654792,93.938,93.831,63.65]
[1645194303686,6.04654792,93.937,93.831,63.65]
[1645194303887,6.04654792,93.938,93.831,63.65]
[1645194304085,6.04654792,93.938,93.832,2.6293831]
[1645194304386,5.54654792,93.938,93.86,15.984]
[1645194304587,23.6494,93.939,93.862,51.0770081]
[1645194305389,23.6494,93.939,93.87,15.9824]
[1645194305589,74.9624,93.959,93.871,170.25]
[1645194305786,5.324,93.967,93.871,172.8793831]
[1645194305989,29.5033,93.974,93.873,63.65]
[1645194306389,5.323,93.974,93.873,69.49]
[1645194306588,24.0139,93.989,93.891,63.65]
[1645194306991,24.1803,94.004,93.898,106.6]
[1645194307191,24.1803,94.004,93.904,106.6]
[1645194307388,43.18978175,94.003,93.906,63.65]
[1645194308087,43.18978175,94.003,93.908,170.25]
[1645194308290,43.18978175,94.003,93.92,15.9731]
[1645194308588,43.18978175,94.003,93.921,52.29283588]
[1645194308791,106.6,94.002,93.921,52.29283588]
[1645194308989,5.321,94.001,93.921,52.29283588]
[1645194309189,106.6,93.999,93.921,52.29283588]
[1645194309389,5.321,93.998,93.921,52.29283588]
[1645194309589,5.321,93.999,93.921,52.29283588]
[1645194309792,31.3743,94.0,93.921,52.29283588]
[1645194309989,15.4,94.0,93.921,52.29283588]
[1645194310391,15.4,94.0,93.922,63.65]
[1645194310591,24.1803,94.004,93.923,170.25]
[1645194310792,24.2642,94.015,93.923,170.25]
[1645194311393,5.32,94.014,93.93,15.9721]
[1645194312091,52.68026545,94.013,93.93,15.9721]
[1645194312293,5.32,94.012,93.93,15.9721]
[1645194312494,52.68026545,94.013,93.93,15.9721]
[1645194312694,106.6,94.012,93.93,15.9721]
[1645194312892,5.32,94.011,93.93,15.9721]
[1645194313493,106.6,94.009,93.923,1.55725817]
[1645194313694,5.321,94.008,93.923,1.55725817]
[1645194314800,5.321,94.009,93.93,15.972]
[1645194315698,31.3729,94.01,93.931,5.32]
[1645194315898,111.92,94.009,93.93,15.972]
[1645194316702,5.32,94.009,93.93,15.972]
[1645194316904,31.3729,94.01,93.931,5.32]
[1645194317406,15.4,94.01,93.94,15.9702]
[1645194317601,0.043993,94.024,93.941,5.32]
[1645194317803,0.043993,94.024,93.933,5.32]
[1645194318004,0.043993,94.024,93.926,5.32]
[1645194318204,106.6,94.021,93.926,5.32]
[1645194318503,106.6,94.019,93.926,5.32]
[1645194318903,5.32,94.018,93.926,5.32]
[1645194320506,106.6,94.009,93.93,15.972]